Cogmind - Beta 13 X1 @@@ ROGUE MODE // 2023.08.19 @ 08:34:30 Player: VR-DUX Result: Destroyed by as-19574 with Assembled Heavy Rifle Performance ------------- Evolutions (0) 0 Regions Visited (2) 400 Robots Destroyed (28) 140 Value Destroyed (604) 604 Prototype IDs (0) 0 Alien Tech Used (0) 0 Bonus (0) 0 TOTAL SCORE: 1144 Bonus ------- None Cogmind --------- Core Integrity 0/250 Matter 182/300 Energy 92/100 System Corruption 4% Temperature Cool (0) Movement Core (50) Location -10/Mines Parts ------- > --- POWER (1) -------- (None) > --- PROPULSION (2) --- (None) > --- UTILITY (2) ------ (None) > --- WEAPON (2) ------- (None) > --- INVENTORY (5) ---- Signal Interpreter Light Armor Plating Hacking Suite Light EM Pulse Cannon Shotgun Peak State ------------ > --- POWER ------------ Light Ion Engine > --- PROPULSION ------- Light Treads Light Treads > --- UTILITY ---------- Large Storage Unit Signal Interpreter > --- WEAPON ----------- Light EM Pulse Cannon Mace > --- INVENTORY -------- Ion Engine Huge Storage Unit Structural Scanner Signal Interpreter Light Armor Plating Hacking Suite Medium Laser Light EM Pulse Cannon Beam Cannon Assault Rifle Shotgun Grenade Launcher Grenade Launcher [Rating: 10] Favorites ----------- Power Ion Engine Engine Ion Engine Propulsion Light Treads Treads Light Treads Leg Aluminum Leg Utility Large Storage Unit Device Structural Scanner Storage Large Storage Unit Processor Signal Interpreter Weapon EM Pulse Gun Energy Gun EM Pulse Gun Energy Cannon Light EM Pulse Cannon Ballistic Gun Assault Rifle Launcher Grenade Launcher Impact Weapon Mace Build | -11 -10 -10 ------- Run | Jun Mat Min Slots Evolved . | . . . Power . | . . . Propulsion . | . . . Utility . | . . . Weapon . | . . . Parts Attached 23 | 1 19 3 Power 3 | . 2 1 Engine 3 | . 2 1 Core . | . . . Reactor . | . . . Propulsion 3 | . 3 . Treads 3 | . 3 . Leg . | . . . Wheel . | . . . Hover . | . . . Flight . | . . . Utility 7 | 1 6 . Device 2 | 1 1 . Storage 4 | . 4 . Processor 1 | . 1 . Hackware . | . . . Protection . | . . . Artifact . | . . . Weapon 10 | . 8 2 Energy Gun . | . . . Energy Cannon 1 | . 1 . Ballistic Gun 3 | . 3 . Ballistic Cannon . | . . . Launcher 3 | . 1 2 Special Weapon . | . . . Impact Weapon 3 | . 3 . Slashing Weapon . | . . . Piercing Weapon . | . . . Special Melee Weapon . | . . . Unidentified Prototypes . | . . . Parts Lost 6 | . 1 5 Power 1 | . . 1 Propulsion 2 | . . 2 Utility . | . . . Weapon 3 | . 1 2 Highest Loss Streak 5 | . 1 5 To Critical Strikes . | . . . Average Slot Usage (%) 97 | . 98 68 Engine 13 | . 14 8 Treads 22 | . 22 16 Leg 5 | . 5 . Device 8 | . 8 . Storage 13 | . 14 11 Processor 5 | . 5 11 Energy Gun 9 | . 10 . Energy Cannon 3 | . 3 8 Ballistic Gun 5 | . 5 . Launcher 2 | . 2 11 Impact Weapon 6 | . 6 . Naked Turns 8 | . . 8 Heaviest Build 30 | 15 30 30 Greatest Support 40 | 20 40 40 Greatest Overweight (x) . | . . . Average Overweight (x) . | . . . Largest Inventory Capacity 25 | 8 25 15 Average Capacity 12 | 8 12 13 Most Carried 14 | 6 14 14 Average Carried 10 | 4 10 12 Final Capacity 15 | 8 15 5 Final Carried 14 | 6 14 5 Class Distribution -------------------- 100% | Mutant Dominant Class ---------------- Mutant | -10/Materials Mutant | -10/Mines Resources | -11 -10 -10 ----------- Run | Jun Mat Min Matter Collected 632 | 200 432 . Remotely . | . . . Salvage Created 763 | 97 632 34 Parts 55 | 7 42 6 Haulers Intercepted 2 | . 2 . Recyclers Shooed 2 | 1 1 . Parts Field Recycled . | . . . Retrieved Matter . | . . . Parts Self-Destructed . | . . . Prevented . | . . . Kills | -11 -10 -10 ------- Run | Jun Mat Min Combat Hostiles Destroyed 26 | . 11 15 Guns 6 | . 6 . AOE 19 | . 4 15 Classes Destroyed 10 | 2 6 2 Worker 2 | . 2 . Builder 1 | . 1 . Tunneler 2 | 1 1 . Hauler 2 | . 2 . Recycler 2 | 1 1 . Operator 2 | . 2 . Watcher 3 | . 3 . Swarmer 3 | . . 3 Grunt 11 | . 11 . Assembled 12 | . . 12 Best Kill Streak 15 | 2 8 15 Combat Bots Only 15 | . 3 15 Max Kills in Single Turn 4 | 1 2 4 Gunslinging . | . . . Exploded 4 | . 1 4 Melee . | . . . Uniques/NPCs Destroyed . | . . . Combat | -11 -10 -10 -------- Run | Jun Mat Min Damage Taken 1149 | . 540 609 Core 258 | . 71 187 Absorbed by Shields . | . . . Regen/Repaired (Parts) 104 | . 104 . Core Remaining (%) 100 | 100 . . Volleys Fired 115 | 6 100 9 Largest 2 | 2 2 1 Hottest 90 | 90 60 30 Shots Fired 127 | 12 106 9 Gun 99 | 12 87 . Cannon 2 | . 2 . Launcher 26 | . 17 9 Special . | . . . Kinetic 46 | . 46 . Thermal 6 | 6 . . Explosive 26 | . 17 9 Electromagnetic 49 | 6 43 . Robot Hit Streak 10 | 6 10 7 Robot Miss Streak 4 | 1 4 2 Penetration Max . | . . . Secondary Targets . | . . . Shots Hit Robots 76 | 8 61 7 Core Hits 67 | 3 36 28 Critical Kills . | . . . Critical Parts Destroyed . | . . . Critical Strikes 1 | . 1 . Corrupt 1 | . 1 . Melee Attacks 13 | . 13 . Impact 13 | . 13 . Slashing . | . . . Piercing . | . . . Sneak Attacks 1 | . 1 . Combat Hostiles . | . . . Follow-up Attacks . | . . . Damage Inflicted 2567 | 108 1517 942 Guns 841 | 108 733 . Cannons 27 | . 27 . Explosions 1644 | . 702 942 Melee 55 | . 55 . Ramming . | . . . Kinetic 379 | . 379 . Thermal 95 | 50 45 . Explosive 1599 | . 657 942 Electromagnetic 439 | 58 381 . Impact 55 | . 55 . Slashing . | . . . Piercing . | . . . Highest Corruption 4 | . . 4 Average Corruption 4 | . . 4 Corruption Purged . | . . . Corruption Blocked . | . . . Effects 1 | . . 1 Energy Discharges 1 | . . 1 Overload Shots . | . . . Overflow Damage 67 | . 25 42 Projectiles . | . . . Explosions 52 | . 10 42 Melee 15 | . 15 . Knockbacks . | . . . Impact . | . . . Kinetic . | . . . Secondary . | . . . Self-Inflicted Damage 143 | . . 143 Shots 6 | . . 6 Rammed . | . . . Targets Rammed . | . . . Kicked . | . . . Crushed . | . . . Highest Temperature 162 | 162 38 10 Average Temperature 33 | 85 15 7 Received Heat Transfer 340 | . 300 40 Siege Activations . | . . . Robots Corrupted 1 | . 1 . Combat Hostiles 1 | . 1 . Parts Fried 3 | . 3 . Impact Corruptions 1 | . 1 . Robots Melted . | . . . Combat Hostiles . | . . . Parts Melted 1 | 1 . . Heat Transferred 198 | 148 50 . Parts Sabotaged . | . . . Parts Stolen . | . . . Parts Stripped . | . . . Power Chain Reactions 1 | . 1 . Missiles Intercepted . | . . . Alert | -11 -10 -10 ------- Run | Jun Mat Min Peak Influence 298 | 10 298 234 Initial 6 | . 6 1 Average 111 | 5 112 160 Maximum Alert Level 1 | . 1 1 Low Security (%) 88 | 100 89 72 Level 1 11 | . 10 28 Level 2 . | . . . Level 3 . | . . . Level 4 . | . . . Level 5 . | . . . High Security . | . . . Max Security . | . . . Squads Dispatched 3 | . 3 . Investigation 3 | . 3 . Extermination . | . . . Reinforcement . | . . . Assault . | . . . Garrison . | . . . Intercept . | . . . Searches Triggered . | . . . Construction Impeded . | . . . Haulers Reinforced . | . . . Active Scanning Responses . | . . . Cargo Convoy Interrupts . | . . . Stealth | -11 -10 -10 --------- Run | Jun Mat Min Distress Signals 2 | . 2 . Communications Jammed . | . . . Distress Signals . | . . . Times Spotted 39 | . 18 21 Peak Tracking Total 15 | . 4 15 Tactical Retreats . | . . . Traps | -11 -10 -10 ------- Run | Jun Mat Min Traps Triggered 1 | . 1 . Indirectly . | . . . Trap Hack Attempts . | . . . Triggered . | . . . Disarmed . | . . . Reprogrammed . | . . . Reused . | . . . Traps Extracted . | . . . Installed . | . . . Triggered . | . . . Machines | -11 -10 -10 ---------- Run | Jun Mat Min Machines Disabled 7 | . . 7 Max in Single Turn 7 | . . 7 Machines Repaired . | . . . Machines Sabotaged . | . . . Overloaded Fab Kills . | . . . Hacking | -11 -10 -10 --------- Run | Jun Mat Min Machines Accessed 7 | . 7 . Terminals 5 | . 5 . Fabricators . | . . . Repair Stations 1 | . 1 . Recycling Units 1 | . 1 . Scanalyzers . | . . . Garrison Access . | . . . Total Hacks 21 | . 21 . Successful 6 | . 6 . Failed 14 | . 14 . Catastrophic 3 | . 3 . Database Lockouts 1 | . 1 . Manual 18 | . 18 . Terminals 13 | . 13 . Fabricators . | . . . Repair Stations 5 | . 5 . Recycling Units 3 | . 3 . Scanalyzers . | . . . Garrison Access . | . . . Terminal Hacks 2 | . 2 . Robot Analysis 1 | . 1 . Branch Access Points 1 | . 1 . Fabricator Hacks . | . . . Repair Station Hacks 3 | . 3 . Scan Component 2 | . 2 . Repair 1 | . 1 . Recycling Unit Hacks 1 | . 1 . Retrieve Components 1 | . 1 . Scanalyzer . | . . . Garrison Access Hacks . | . . . Unauthorized Hacks . | . . . Terminals . | . . . Fabricators . | . . . Repair Stations . | . . . Recycling Units . | . . . Scanalyzers . | . . . Garrison Access . | . . . Data Cores Recovered 2 | . 2 . Used . | . . . Hacking Detections 8 | . 8 . Full Trace Events 2 | . 2 . Feedback Events . | . . . Feedback Blocked . | . . . Robot Schematics Acquired . | . . . Robots Built . | . . . Authchips . | . . . Time . | . . . Total Robot Build Rating . | . . . Part Schematics Acquired . | . . . Parts Built . | . . . Authchips . | . . . Time . | . . . Total Part Build Rating . | . . . Parts Repaired 1 | . 1 . Time 26 | . 26 . Parts Recycled . | . . . Recycled Matter . | . . . Retrieved Matter . | . . . Retrieved Components 6 | . 6 . Parts Scanalyzed . | . . . Part Schematics Acquired . | . . . Parts Damaged . | . . . Bothacking | -11 -10 -10 ------------ Run | Jun Mat Min Used RIF Installer . | . . . Robots Hacked . | . . . Non-combat . | . . . Combat . | . . . Robot Hacks Applied . | . . . Relay Couplers Released . | . . . Fabnet Peak Effective % . | . . . Robots Rewired 1 | . 1 . Allies Hacked . | . . . Hacks Repelled . | . . . Allies | -11 -10 -10 -------- Run | Jun Mat Min Total Allies 1 | . 1 . Largest Group 1 | . 1 . Highest-Rated Group 16 | . 16 . Highest-Rated Ally 16 | . 16 . Total Orders . | . . . Ally Attacks 3 | . 3 . Total Damage 31 | . 31 . Kills . | . . . Allies Corrupted . | . . . Allies Melted . | . . . Intel | -11 -10 -10 ------- Run | Jun Mat Min Robot Analysis Total 1 | . 1 . Derelict Logs Recovered . | . . . Drone Launches . | . . . Drone Recoveries . | . . . Exploration | -11 -10 -10 ------------- Run | Jun Mat Min Turns Passed 1312 | 33 1229 50 Spaces Moved 620 | 9 581 30 Core 18 | . . 18 Treads 478 | . 466 12 Legs 124 | 9 115 . Wheels . | . . . Hover . | . . . Flight . | . . . Fastest Speed 50 | 120 120 50 Average Speed 148 | 120 152 94 Slowest Speed 160 | 120 160 160 Overloaded Moves . | . . . Propulsion Burnouts . | . . . Robots Hopped . | . . . Cave-ins Triggered . | . . . Exploration Rate (%) 34 | 2 81 19 Regions Visited 2 Branch Regions 1 Pre-discovered Areas . | . . . Known Exits Taken 1 | . 1 . Unknown Exits Taken 1 | 1 . . Scrap Searched . | . . . Spaces Dug 10 | . 10 . Terrain Destroyed 158 | . 87 71 Melee 10 | . 10 . Projectile . | . . . AOE 148 | . 77 71 Terrain Rammed . | . . . Walls Destroyed . | . . . Machines Disabled . | . . . Actions | -11 -10 -10 --------- Run | Jun Mat Min Total 865 | 19 803 43 Wait 60 | . 60 . Move 618 | 8 580 30 Hop . | . . . Pick Up 18 | 2 16 . Fast Attach 4 | 1 3 . Attach 7 | . 5 2 Detach . | . . . Swap 12 | . 11 1 Drop 15 | 2 12 1 Fire 115 | 6 100 9 Melee 13 | . 13 . Ram . | . . . Kick . | . . . Crush . | . . . Escape Stasis . | . . . Rewire 3 | . 3 . Trap . | . . . Miscellaneous . | . . . Route ------- -11/Junkyard -10/Materials (discovered 4 exits: [*Mat x3] / *Min) -10/Mines History --------- Turn | Location | Event 18 | -11/Junkyard | Discovered new exit (range 2) 34 | -11/Junkyard | Entered Materials 218 | -10/Materials | Discovered new exit (range 11) 303 | -10/Materials | Build established: Mutant 430 | -10/Materials | Discovered new exit (range 13) 495 | -10/Materials | Discovered new exit (range 7) 782 | -10/Materials | Identified exit to Mines 795 | -10/Materials | Central database locked down 944 | -10/Materials | Discovered new exit (range 16) 1134 | -10/Materials | Repaired Lgt. Treads 1263 | -10/Materials | Entered Mines 1279 | -10/Mines | Assembled infested the area 1295 | -10/Mines | Core integrity fell below 50% 1302 | -10/Mines | Core integrity fell below 20% 1305 | -10/Mines | Released all parts (4) 1313 | -10/Mines | Destroyed by as-19574 with Assembled Heavy Rifle Last Messages --------------- 01297_ Destroyed Asb. F-torch. 01298_ Lgt. Treads destroyed. 01298_ as-59226 suffers critical hit (Destroy). 01298_ as-59226 destroyed. 01299_ as-57587 destroyed. 01299_ as-33317 destroyed. 01299_ as-93100 destroyed. 01299_ as-11679 destroyed. 01299_ as-55221 destroyed. 01301_ as-18696 destroyed. 01301_ as-82672 destroyed. 01302_ The unstable cave ceiling collapses. 01304_ Dropped Huge Storage Unit. 01305_ System corrupted: Energy discharge (-30). 01305_ Released Lrg. Storage Unit. 01305_ Released Signal Interpreter. 01305_ Released Ion Engine. 01305_ Released Grenade Launcher. 01308_ The unstable cave ceiling collapses. 01310_ as-88379 destroyed. Map ----- +----------------------------------------------------+ | ????????????????????????##### #???? | | ????????????????????????# " #???? | | ????????????????????????# $ "#????? | | ????????????????????????? ?#" "##???? | | ???????????????????????????#" " #???? | | ????????????????????????????# "#????? | | ????????????????????????????# #?????? | | ????????????????????????????##### ########?????? | | ????????????????????????????????# #????????????? | | ????????????????????????????????# #????????????? | | ???????????????????????????###### ###??????????? | | ???????????????????????????# %" ##?????????? | | ???????????????????????????# # /[] #?????????? | | ???????????????????????????# # # [!! #??????????? | | ???????????????????????????# # *]! #??????????? | | ???????????????????????????# # # ] #??????????? | | ??????????????????????####?# #??????????? | | ?????????????????????## ## d ###?????????? | | ?????????????????????# #?????????? | | ?????????????????????# ##?????????? | | ?????????????????????# # #??????????? | | ?????????????????????## ####??????????? | | ??????????????????????## ###?????????????? | | ???????????????????????# ##???????????????? | | ???????????????????????# ##????????????????? | | ???????????????????????##@ #????????????????? | | ????????????????????????# #???????????????? | | ???????????????????????? #???????????????? | | ??????????????????????? < #??????????????? | | ??????????????????????### #?????????????? | | ????????????????????????####a #?????????????? | | ???????????????????????????## #????????????? | | ?????????????????????????????# #????????????? | | ??????????????????????????????# #????????????? | | ???????????????????????????????# ##????????????? | | ???????????????????????????????? #?????????????? | | ????????????????????????????????? #?????????????? | | ?????????????????????????????????? ?????????????? | | ????????????????????????????????????????????????? | | ????????????????????????????????????????????????? | | ????????????????????????????????????????????????? | | ????????????????????????????????????????????????? | | ????????????????????????????????????????????????? | | ????????????????????????????????????????????????? | | ????????????????????????????????????????????????? | | ????????????????????????????????????????????????? | | ????????????????????????????????????????????????? | | ????????????????????????????????????????????????? | | ????????????????????????????????????????????????? | | ????????????????????????????????????????????????? | +----------------------------------------------------+ Best States ------------- Heat Dissipation 25 Energy Generation 10 Energy Capacity 250 Matter Stores 300 Matter Capacity 300 Sight Range 16 Terrain Scan Density 10 Evasion (%) 55 Recoil Reduction 2 Item Schematics ----------------- None Robot Schematics ------------------ None Fabricated ------------ Nothing Alien Tech Used ----------------- None Achievements -------------- None Challenges ------------ None Game ------ Seed CarbideChainPurifier Manual? 0 Play Time 00:20:19 Cumulative 56.5 hours Start 2023.08.19 @ 08:03:04 End 2023.08.19 @ 08:34:30 Sessions 1 Manual Loads 0 Difficulty Rogue Special Mode None Game No. 36 Rogue 36 Adventurer 0 Explorer 0 Win Type - Total 0 Types 0/0/0/0/0/0/0/0/0 Lore% 32 Gallery% 27 Achievement% 35 Wizard Run 0 Options --------- ASCII 0 Keyboard 0 Movement Mouse Keybinds 0 Fullscreen 1 Font 16/SmallcapsGlow Map View 84x54 Tactical HUD 1 Map Filters NONE Filters NONE Steam 1 RUN: 35b5176f-877d-415b-aa48-5986b305986b